bitfinex/quotes_ETHUSD_20220113
["timestamp","ask_amount","ask_price","bid_price","bid_amount"]
[1642117476993,4.1,3257.4,3257.3,3.4222814]
[1642117477194,4.1,3257.4,3257.3,0.00341054]
[1642117477593,0.55,3257.4,3257.2,0.00397896]
[1642117477794,0.027278,3257.5,3257.2,0.00397896]
[1642117477996,0.030392,3257.6,3257.0,0.00511581]
[1642117478193,0.1227,3257.8,3257.0,0.00511581]
[1642117478194,0.796641,3257.5,3257.0,0.00511581]
[1642117478394,0.79677,3257.5,3257.0,0.00511581]
[1642117478993,0.3,3257.4,3257.0,0.00511581]
[1642117479395,0.029834,3257.3,3257.0,0.00511581]
[1642117479794,0.029834,3257.3,3256.9,0.00568423]
[1642117480931,0.028593,3257.3,3256.9,0.00568423]
[1642117483037,1.41261425,3257.7,3256.9,0.00568423]
[1642117483038,0.1228,3258.2,3257.0,0.1228]
[1642117483234,3.5,3257.8,3257.1,0.01218344]
[1642117483432,3.5,3257.8,3257.2,0.1227]
[1642117483679,3.5,3257.8,3257.2,0.12667896]
[1642117483880,0.027278,3257.9,3257.2,0.12667896]
[1642117484085,0.027278,3257.9,3257.2,2.15786936]
[1642117484285,0.027278,3257.9,3257.2,1.27097896]
[1642117485385,0.027278,3257.9,3257.3,3.29530478]
[1642117485784,0.027278,3257.9,3257.4,0.00284212]
[1642117492083,0.027278,3257.9,3257.4,1.21663332]
[1642117492284,0.027278,3257.9,3257.5,3.18494997]
[1642117492482,0.027278,3257.9,3257.5,3.18722366]
[1642117492683,0.027278,3257.9,3257.6,0.00170527]
[1642117496439,0.027278,3257.9,3257.7,0.04307621]
[1642117496638,0.027413,3257.9,3257.7,0.04307621]
[1642117497242,0.027413,3257.9,3257.8,2.63778482]
[1642117497740,0.027413,3257.9,3257.8,2.56106712]
[1642117498986,0.027413,3257.9,3257.6,0.00170527]
[1642117499388,0.627278,3258.0,3257.6,0.00170527]
[1642117499887,0.327278,3258.0,3257.6,0.00170527]
[1642117500786,0.327278,3258.0,3257.5,0.00227369]
[1642117500987,0.031004,3257.9,3257.5,0.00227369]
[1642117501388,0.627278,3258.0,3257.5,0.00227369]
[1642117501585,0.327278,3258.0,3257.5,0.00227369]
[1642117502739,0.330088,3258.0,3257.5,0.00227369]
[1642117503039,1.397618,3258.0,3257.5,0.00227369]
[1642117504440,0.032575,3257.9,3257.5,0.00227369]
[1642117504640,0.035871,3257.7,3257.5,0.00227369]
[1642117505141,0.158571,3257.7,3257.5,0.00227369]
[1642117505340,0.03308,3257.6,3257.5,0.00227369]
[1642117505540,0.15578,3257.6,3257.5,0.00227369]
[1642117507387,0.75578,3257.6,3257.5,0.00227369]
[1642117509384,0.75578,3257.6,3257.5,0.98078951]
[1642117513536,4.36451071,3257.6,3256.8,1.215]
[1642117513785,0.035871,3257.0,3256.8,1.215]
[1642117513986,0.7679,3257.0,3256.9,0.00341054]
[1642117514184,2.0679,3257.0,3256.9,0.00341054]
[1642117514385,2.108915,3257.0,3256.9,0.00341054]
[1642117514585,3.5299088,3257.0,3256.9,0.00341054]
[1642117514783,3.5157207,3257.0,3256.7,0.00454739]
[1642117514984,5.8195407,3257.0,3256.7,0.00454739]
[1642117515184,5.85617257,3257.0,3256.7,0.00454739]
[1642117515388,0.3,3256.9,3256.7,0.00454739]
[1642117515584,0.031685,3256.8,3256.7,0.00454739]
[1642117516386,0.799615,3256.8,3256.5,0.00568424]
[1642117516586,1.567545,3256.8,3256.5,0.00568424]
[1642117516887,0.331481,3256.7,3256.4,0.00625266]
[1642117517186,1.867391,3256.7,3256.4,0.00625266]
[1642117517444,2.167391,3256.7,3256.4,0.00625266]
[1642117517636,2.13591,3256.7,3256.4,0.00625266]
[1642117518638,0.031746,3256.6,3256.3,0.00682108]
[1642117519037,0.799716,3256.6,3256.3,0.00682108]
[1642117519236,0.799716,3256.6,3256.5,2.63876464]
[1642117519436,0.031746,3256.6,3256.5,2.63876464]
[1642117519636,0.031746,3256.6,3256.5,2.64444888]
[1642117520238,4.4398154,3256.7,3256.5,0.00568424]
[1642117520239,4.4670934,3256.7,3256.5,0.00568424]
[1642117520641,4.4670934,3256.7,3256.3,0.00682108]
[1642117520839,0.76793,3256.5,3256.3,0.00682108]
[1642117521038,0.3,3256.4,3256.3,0.00682108]
[1642117521695,0.3,3256.4,3256.1,0.00795793]
[1642117521895,2.60403,3256.4,3256.1,0.00795793]
[1642117522300,0.045463,3256.2,3256.1,0.00795793]
[1642117522497,3.96286753,3256.2,3256.1,0.00795793]
[1642117522698,1.473563,3256.2,3256.1,0.00795793]
[1642117522899,3.72627804,3256.2,3256.1,0.00795793]
[1642117523098,3.72627804,3256.2,3255.9,1.5707765]
[1642117523305,0.813643,3256.0,3255.9,7.65e-05]
[1642117523503,0.813643,3256.0,3255.4,3.16506714]
[1642117523504,1.676443,3256.0,3255.4,3.16506714]
[1642117523700,1.676443,3256.0,3254.9,3.87406961]
[1642117523701,0.1228,3255.9,3254.9,3.87406961]
[1642117523901,0.045463,3255.2,3254.9,3.87406961]
[1642117525335,0.813823,3255.2,3254.9,3.87406961]
[1642117525534,1.113823,3255.2,3254.9,3.87406961]
[1642117525735,1.113823,3255.2,3254.4,1.33365735]
[1642117525736,2.113823,3255.2,3254.4,1.33365735]
[1642117525939,2.236623,3255.2,3254.4,1.33365735]
[1642117526936,1.468263,3255.2,3254.5,1.1967]
[1642117527137,0.450214,3255.2,3254.5,1.1967]
[1642117527335,1.4228,3255.2,3254.5,1.1967]
[1642117527537,1.1228,3255.2,3254.5,1.1967]
[1642117527937,0.36526282,3255.2,3254.5,1.1967]
[1642117528138,1.24246282,3255.2,3254.5,1.1967]
[1642117528337,0.24246282,3255.2,3254.5,1.1967]
[1642117528540,1.24246282,3255.2,3254.5,1.1967]
[1642117528783,0.24246282,3255.2,3254.5,1.1967]
[1642117528983,1.24246282,3255.2,3254.5,1.1967]
[1642117529584,0.24246282,3255.2,3254.5,1.1967]
[1642117529785,0.24246282,3255.2,3254.6,0.1228]
[1642117530184,0.24246282,3255.2,3254.6,0.1088013]
[1642117530684,0.24246282,3255.2,3254.7,0.00795793]
[1642117532186,0.24246282,3255.2,3254.9,1.40657412]
[1642117532485,0.24246282,3255.2,3255.0,0.1228]
[1642117532669,0.24246282,3255.2,3255.0,0.12905266]
[1642117532871,0.24246282,3255.2,3255.1,0.00568424]
[1642117533870,0.24246282,3255.2,3255.1,1.58283596]
[1642117533871,0.02898,3255.2,3255.1,1.58283596]
[1642117534069,0.027278,3255.3,3255.1,1.58283596]
[1642117534471,0.027278,3255.3,3255.2,0.00511581]
[1642117534671,0.027852,3255.3,3255.2,0.00511581]
[1642117534872,0.69254082,3255.7,3255.2,0.00511581]
[1642117535071,0.76817,3255.4,3255.2,0.00511581]
[1642117535273,0.330884,3255.7,3255.2,0.00511581]
[1642117535474,0.3,3255.4,3255.3,1.37838901]
[1642117535673,0.327783,3255.7,3255.3,1.37838901]
[1642117535876,0.328653,3255.7,3255.3,1.3829364]
[1642117536073,0.3,3255.7,3255.4,0.00397896]
[1642117536295,1.0681,3255.7,3255.4,0.00397896]
[1642117536489,0.045183,3255.5,3255.4,0.00397896]
[1642117536690,0.167983,3255.5,3255.2,0.00511581]
[1642117536891,0.156649,3255.4,3255.2,0.00511581]
[1642117537391,0.033849,3255.4,3255.2,0.00511581]
[1642117537689,0.033849,3255.4,3255.1,0.00568424]
[1642117537890,0.027278,3255.5,3255.1,0.00568424]
[1642117538090,1.06812,3255.6,3255.1,0.00568424]
[1642117538492,1.06812,3255.6,3255.4,1.21814946]
[1642117538691,0.1228,3255.5,3255.4,1.21814946]
[1642117538896,1.06812,3255.6,3255.5,0.00341054]
[1642117539091,1.06812,3255.6,3255.4,1.22212842]
[1642117539293,1.06812,3255.6,3255.5,0.00341054]
[1642117540235,1.097989,3255.6,3255.5,0.00341054]
[1642117540833,1.095603,3255.6,3255.5,0.00341054]
[1642117542635,1.098138,3255.6,3255.5,0.00341054]
[1642117542836,0.3,3255.6,3255.5,0.00341054]
[1642117543035,0.3,3255.6,3255.5,0.12621054]
[1642117543236,0.3,3255.6,3255.5,0.00341054]
[1642117544888,0.027278,3256.1,3255.5,0.00341054]
[1642117545084,1.58378718,3256.3,3255.5,0.00341054]
[1642117545085,2.18378718,3256.3,3255.5,0.00341054]
[1642117545285,2.18378718,3256.3,3255.6,0.1228]
[1642117545686,2.21152718,3256.3,3255.7,0.00227369]
[1642117545887,0.027278,3256.4,3255.7,0.00227369]
[1642117545888,1.61106518,3256.4,3255.7,0.00227369]
[1642117546085,0.032561,3256.3,3255.7,0.00227369]
[1642117546287,0.035871,3256.0,3255.7,0.00227369]
[1642117546886,0.035871,3256.0,3255.5,0.00341054]
[1642117547086,0.1228,3256.2,3255.6,1.57715172]
[1642117547087,0.031556,3255.9,3255.6,1.57715172]
[1642117547539,0.031556,3255.9,3255.7,0.00227369]
[1642117548137,0.027278,3256.0,3255.7,0.00227369]
[1642117548339,0.038775,3255.8,3255.7,0.00227369]
[1642117549038,0.038775,3255.8,3255.5,0.00341054]
[1642117550442,0.038775,3255.8,3255.5,1.53939814]
[1642117550443,0.2284403,3255.7,3255.5,1.53939814]
[1642117550840,0.2284403,3255.7,3255.6,0.00284212]
[1642117552390,0.2284403,3255.7,3255.6,0.89361942]
[1642117552590,0.2284403,3255.7,3255.6,3.29341168]
[1642117553892,0.027278,3255.8,3255.6,3.29341168]
[1642117554091,0.027278,3255.9,3255.7,0.1228]
[1642117554291,0.027427,3255.9,3255.7,0.12507369]
[1642117554496,0.027278,3256.0,3255.8,0.00170527]
[1642117554691,0.02856,3256.0,3255.8,0.76960347]
[1642117555135,0.027278,3256.1,3255.9,0.00113685]
[1642117555336,0.00113685,3256.3,3255.9,0.00113685]
[1642117555535,0.031622,3256.2,3255.9,0.00113685]
[1642117556137,0.031622,3256.2,3255.9,2.40092911]
[1642117557240,0.02841485,3256.3,3256.0,2.39979226]
[1642117557436,0.02841485,3256.3,3256.1,0.7678214]
[1642117558689,0.154219,3256.2,3256.0,2.39979226]
[1642117558887,0.033858,3256.1,3255.9,0.00113685]
[1642117559087,0.1228,3256.0,3255.9,0.00113685]
[1642117559289,0.150758,3256.0,3255.7,0.00227369]
[1642117559488,0.031366,3255.9,3255.7,0.00227369]
[1642117559688,0.1228,3255.8,3255.7,0.00227369]
[1642117560988,0.031366,3255.9,3255.7,0.00227369]
[1642117562092,1.70658718,3256.2,3255.7,0.00227369]
[1642117562093,0.154182,3255.8,3255.7,0.00227369]
[1642117562478,0.154182,3255.8,3255.5,0.00341054]
[1642117562664,0.031123,3255.7,3255.5,0.00341054]
[1642117562964,0.1228,3255.6,3255.5,0.00341054]
[1642117564164,0.1228,3255.6,3255.2,0.00511581]
[1642117564365,0.030568,3255.5,3255.2,0.77324131]
[1642117564766,0.030568,3255.5,3255.3,0.00454739]
[1642117564971,0.030568,3255.5,3255.3,1.15076107]
[1642117565368,0.030568,3255.5,3255.4,0.00397896]
[1642117565967,0.027278,3255.6,3255.4,0.00397896]
[1642117566190,0.031375,3255.7,3255.4,0.00397896]
[1642117566392,0.1228,3255.6,3255.4,0.00397896]
[1642117566788,0.150935,3255.6,3255.3,0.00454739]
[1642117566989,0.028135,3255.6,3255.3,0.00454739]
[1642117568388,0.1228,3255.5,3255.3,0.00454739]
[1642117569588,0.027663,3255.5,3255.3,0.00454739]
[1642117570637,0.17658265,3255.4,3255.3,0.00454739]
[1642117575296,0.17658265,3255.4,3255.3,2.42408496]
[1642117575498,0.20386065,3255.5,3255.3,2.42408496]
[1642117575896,0.20386065,3255.5,3255.4,0.00397896]
[1642117576297,0.027278,3255.5,3255.4,0.00397896]
[1642117577199,0.027278,3255.5,3255.4,2.42351653]
[1642117577735,0.027278,3255.6,3255.4,2.42351653]
[1642117577937,0.027278,3255.7,3255.4,2.42351653]
[1642117578139,3.32378718,3255.9,3255.2,3.1]
[1642117578140,3.32378718,3255.9,3255.5,0.00341054]
[1642117578536,3.32378718,3255.9,3255.4,0.00397896]
[1642117578938,0.033075,3255.8,3255.4,0.00397896]
[1642117579736,0.033075,3255.8,3255.5,2.41953757]
[1642117579939,0.801295,3255.8,3255.5,2.41953757]
[1642117580146,4.00030854,3255.7,3255.6,0.00284212]
[1642117580338,2.2485,3255.7,3255.6,0.00284212]
[1642117580539,3.293963,3255.7,3255.6,0.00284212]
[1642117580742,3.520963,3255.7,3255.6,0.00284212]
[1642117580940,3.820963,3255.7,3255.6,2.42237969]
[1642117581189,1.8628,3255.7,3255.6,2.42237969]
[1642117581389,2.19203,3255.7,3255.6,2.42237969]
[1642117581989,1.19203,3255.7,3255.6,2.42237969]
[1642117582191,1.19203,3255.7,3255.6,0.00284212]
[1642117582389,2.19203,3255.7,3255.6,0.00284212]
[1642117582590,2.19203,3255.7,3255.3,0.00454739]
[1642117582792,0.034182,3255.5,3255.3,0.00454739]
[1642117582990,0.44,3255.4,3255.3,0.00454739]
[1642117583190,0.768165,3255.4,3255.3,0.00454739]
[1642117583694,1.068165,3255.4,3255.3,0.00454739]
[1642117583891,0.468165,3255.4,3255.3,0.00454739]
[1642117584095,0.44,3255.4,3255.3,0.00454739]
[1642117584490,0.468849,3255.4,3255.3,0.00454739]
[1642117585338,0.3,3255.4,3255.3,0.00454739]
[1642117585536,1.36829,3255.5,3255.3,0.00454739]
[1642117588789,2.36829,3255.5,3255.3,0.00454739]
[1642117588988,1.36829,3255.5,3255.3,0.00454739]
[1642117589189,2.36829,3255.5,3255.3,0.00454739]
[1642117589488,1.36829,3255.5,3255.3,0.00454739]
[1642117589690,0.44,3255.4,3255.3,0.00454739]
[1642117591095,1.44,3255.4,3255.3,0.00454739]
[1642117592093,1.64578644,3255.4,3255.3,0.00454739]
[1642117592638,5.25574107,3255.4,3255.3,0.00454739]
[1642117592839,5.28488409,3255.4,3255.3,0.00454739]
[1642117593038,1.64578644,3255.4,3255.3,0.00454739]
[1642117593238,1.76858644,3255.4,3255.3,0.00454739]
[1642117593438,0.76858644,3255.4,3255.3,0.00454739]
[1642117594237,0.64578644,3255.4,3255.3,0.00454739]
[1642117596039,1.94578644,3255.4,3255.3,0.00454739]
[1642117596292,1.24578644,3255.4,3255.3,0.00454739]
[1642117596489,5.85171942,3255.4,3255.3,0.00454739]
[1642117597092,7.4355066,3255.4,3255.3,0.00454739]
[1642117597689,7.53099822,3255.4,3255.3,0.00454739]
[1642117597889,2.36858644,3255.4,3255.3,0.00454739]
[1642117599090,5.9780659,3255.4,3255.3,0.00454739]
[1642117599293,6.02602847,3255.4,3255.3,0.00454739]
[1642117599490,2.36858644,3255.4,3255.3,0.00454739]
[1642117600135,3.94790191,3255.4,3255.3,0.00454739]
[1642117601539,2.36858644,3255.4,3255.3,0.00454739]
[1642117601938,1.24578644,3255.4,3255.3,0.00454739]
[1642117602138,2.24578644,3255.4,3255.3,0.00454739]
[1642117602541,1.24578644,3255.4,3255.3,0.00454739]
[1642117602740,2.24578644,3255.4,3255.3,0.00454739]
[1642117603541,1.24578644,3255.4,3255.3,0.00454739]
[1642117603794,2.24578644,3255.4,3255.3,0.00454739]
[1642117604998,0.76844,3255.2,3254.5,0.1228]
[1642117605198,0.76844,3255.2,3253.9,1.1808]
[1642117605199,0.76858,3254.7,3254.0,6.55845172]
[1642117605401,0.44,3254.6,3254.2,2.79907761]
[1642117605598,1.74,3254.6,3254.2,2.79907761]
[1642117605799,2.04,3254.6,3254.2,2.79907761]
[1642117605998,1.04,3254.6,3254.2,2.79907761]
[1642117606198,2.04,3254.6,3254.2,2.79907761]
[1642117606399,0.76858,3254.5,3254.2,2.79907761]
[1642117606602,0.44,3254.4,3254.1,2.31961264]
[1642117607001,1.04,3254.4,3254.2,0.00625266]
[1642117607199,1.04,3254.4,3254.2,3.10625266]
[1642117607641,1.04,3254.4,3254.3,0.00568423]
[1642117609043,1.04,3254.4,3254.3,2.32529687]
[1642117612095,2.1629,3254.4,3254.3,2.32529687]
[1642117612490,1.1629,3254.4,3254.3,2.32529687]
[1642117612691,2.1629,3254.4,3254.3,2.32529687]
[1642117613992,2.04,3254.4,3254.3,2.32529687]
[1642117614697,1.04,3254.4,3254.3,2.32529687]
[1642117614946,2.04,3254.4,3254.3,2.32529687]
[1642117615340,1.04,3254.4,3254.3,2.32529687]
[1642117615540,2.04,3254.4,3254.3,2.32529687]
[1642117615740,1.04,3254.4,3254.3,2.32529687]
[1642117615941,2.04,3254.4,3254.3,2.32529687]
[1642117617546,1.04,3254.4,3254.3,2.32529687]
[1642117617745,2.04,3254.4,3254.3,2.32529687]
[1642117617945,2.04,3254.4,3254.3,2.24853205]
[1642117618146,1.04,3254.4,3254.3,2.19853205]
[1642117618345,2.04,3254.4,3254.3,2.19853205]
[1642117618988,1.04,3254.4,3254.3,2.19853205]
[1642117619190,2.04,3254.4,3254.3,2.19853205]
[1642117619793,0.44,3254.8,3254.3,5.64926006]
[1642117619996,2.37568077,3255.2,3254.7,0.01226203]
[1642117620192,0.42898077,3255.2,3255.1,0.012389]
[1642117620592,0.42898077,3255.2,3255.1,0.01352585]
[1642117620993,1.05097679,3255.3,3255.1,0.00113685]
[1642117621193,0.1228,3255.4,3255.1,0.00113685]
[1642117621393,0.1228,3255.6,3255.1,0.00113685]
[1642117621590,0.76833,3255.4,3254.5,3.44314189]
[1642117621792,0.1228,3255.3,3254.6,0.00397896]
[1642117622192,0.1228,3255.3,3254.5,0.00454739]
[1642117622445,2.80833,3255.4,3254.5,0.00454739]
[1642117622738,1.80833,3255.4,3254.5,0.00454739]
[1642117622936,1.0,3255.3,3254.5,0.00454739]
[1642117623136,1.80833,3255.4,3254.5,0.00454739]
[1642117623337,0.1228,3255.3,3254.5,0.00454739]
[1642117623536,0.76838,3255.2,3254.5,0.00454739]
[1642117623737,0.1228,3255.1,3254.5,0.00454739]
[1642117624136,0.4228,3255.1,3254.5,0.00454739]
[1642117624536,0.1228,3255.1,3254.5,0.00454739]
[1642117624938,0.011595,3254.6,3254.5,0.00454739]
[1642117625141,2.115125,3254.6,3254.5,0.00454739]
[1642117625536,3.715125,3254.6,3253.9,0.00795793]
[1642117625737,0.1229,3254.5,3253.8,0.00852635]
[1642117625938,0.44,3254.4,3253.8,0.00852635]
[1642117626189,0.1229,3254.3,3253.8,0.00852635]
[1642117626391,0.44,3254.2,3253.8,0.00852635]
[1642117626591,0.1229,3254.1,3253.8,0.00852635]
[1642117626991,0.1229,3254.1,3253.7,0.00909477]
[1642117627391,0.1229,3254.1,3253.8,0.026041]
[1642117627592,1.04,3254.2,3253.8,0.026041]
[1642117627893,1.04,3254.2,3253.9,0.00795793]
[1642117628491,1.04,3254.2,3253.6,0.0096632]
[1642117628694,2.04,3254.2,3253.6,0.0096632]
[1642117628896,1.04,3254.2,3253.6,0.0096632]
[1642117629096,2.04,3254.2,3253.6,0.0096632]
[1642117629395,1.04,3254.2,3253.6,0.0096632]
[1642117629599,0.1229,3254.1,3253.6,0.0096632]
[1642117631738,0.76863,3254.1,3253.6,0.0096632]
[1642117632040,0.74,3254.0,3253.5,0.01023162]
[1642117632238,0.1229,3253.9,3253.5,0.01023162]
[1642117632439,0.44,3253.8,3253.3,0.01136847]
[1642117632638,0.44,3253.8,3253.2,0.01193689]
[1642117632639,0.1229,3253.7,3253.2,0.01193689]
[1642117632840,0.5629,3253.7,3253.2,0.01193689]
[1642117633045,0.5629,3253.7,3253.0,3.699931]
[1642117633046,0.011684,3253.3,3253.0,3.699931]
[1642117633241,1.079784,3253.3,3252.9,6.57137761]
[1642117633442,1.202684,3253.3,3252.9,6.57137761]
[1642117633688,0.3,3253.2,3253.0,0.00113685]
[1642117634390,0.76888,3253.1,3253.0,0.00113685]
[1642117634589,1.06888,3253.1,3253.0,0.00113685]
[1642117635391,4.5107479,3253.1,3252.7,0.00284212]
[1642117635594,1.0,3253.0,3252.7,0.00284212]
[1642117635790,1.0,3253.0,3252.3,2.39424894]
[1642117635791,1.3,3253.0,3252.4,0.00454739]
[1642117635990,2.30278,3253.1,3252.4,0.02823439]
[1642117636192,2.30278,3253.1,3252.4,0.15113439]
[1642117636193,0.44,3253.0,3252.4,0.15113439]
[1642117636393,0.44,3253.0,3252.5,0.00397897]
[1642117636394,0.718,3253.0,3252.5,0.00397897]
[1642117636595,0.76901,3252.8,3252.5,0.00397897]
[1642117636792,0.76901,3252.8,3252.2,2.1182013]
[1642117636793,0.44,3252.7,3252.2,4.44517563]
[1642117637197,0.00113685,3252.6,3252.2,3.31297563]
[1642117637451,1.52733685,3252.6,3252.2,3.31297563]
[1642117637640,1.82733685,3252.6,3252.2,3.31297563]
[1642117637839,1.82733685,3252.6,3252.2,3.33590663]
[1642117637840,1.52733685,3252.6,3252.2,3.33590663]
[1642117638042,1.82733685,3252.6,3252.2,3.33590663]
[1642117638244,1.82733685,3252.6,3252.2,0.96347969]
[1642117639041,1.82733685,3252.6,3252.5,0.036369]
[1642117640040,1.82733685,3252.6,3252.3,2.24355145]
[1642117640242,1.82733685,3252.6,3252.4,0.021822]
[1642117640442,1.82733685,3252.6,3252.3,2.24355145]
[1642117640946,1.82733685,3252.6,3252.5,2.24355145]
[1642117641591,1.52733685,3252.6,3252.5,2.24355145]
[1642117641792,1.52733685,3252.6,3252.5,2.28243545]
[1642117642392,1.52733685,3252.6,3252.5,2.26655645]
[1642117642594,0.00113685,3252.6,3252.5,2.26655645]
[1642117643397,0.00113685,3252.6,3252.4,1.44333797]
[1642117644295,0.00113685,3252.6,3252.3,1.2299]
[1642117644694,0.00113685,3252.6,3252.3,3.60232694]
[1642117645843,0.00113685,3252.6,3252.3,1.2299]
[1642117649291,0.00113685,3252.6,3252.2,0.94054869]
[1642117650295,0.00113685,3252.6,3252.3,1.49505237]
[1642117650593,0.00113685,3252.6,3252.2,0.94054869]
[1642117650794,0.1229,3252.5,3252.2,0.94054869]
[1642117651695,0.1229,3252.5,3252.3,1.13156217]
[1642117651894,0.00113685,3252.6,3252.3,1.13156217]
[1642117652739,0.00113685,3252.6,3252.3,2.71661174]
[1642117654442,0.00113685,3252.6,3252.4,1.58504957]
[1642117655443,0.00113685,3252.6,3252.3,1.58504957]
[1642117656045,0.44,3252.5,3252.3,1.58504957]
[1642117656296,0.74,3252.5,3252.3,1.58504957]
[1642117657092,2.50904,3252.5,3252.3,1.58504957]
[1642117657693,1.50904,3252.5,3252.3,1.58504957]
[1642117657893,1.0,3252.4,3252.2,0.94054869]
[1642117658093,0.44,3252.4,3252.2,0.94054869]
[1642117661744,0.30113685,3252.6,3252.3,0.1229]
[1642117661745,0.00113685,3252.6,3252.3,0.1229]
[1642117661942,0.00113685,3252.6,3252.5,0.01293213]
[1642117663792,0.00113685,3252.6,3252.3,0.1229]
[1642117664397,0.00113685,3252.6,3252.5,2.02748981]
[1642117665893,0.00113685,3252.6,3252.5,2.04009516]
[1642117666495,0.00113685,3252.6,3252.5,0.01260535]
[1642117667194,0.61182769,3253.1,3252.6,1.47378556]
[1642117667449,0.91182769,3253.1,3252.8,1.4508339]
[1642117667641,0.61523823,3253.0,3252.8,1.4508339]
[1642117668040,0.00284212,3252.9,3252.8,1.4508339]
[1642117668441,0.61466981,3252.9,3252.8,1.4508339]
[1642117668843,0.61466981,3252.9,3252.8,4.5508339]
[1642117669043,0.91466981,3252.9,3252.8,4.5508339]
[1642117671049,0.61466981,3252.9,3252.8,4.5508339]
[1642117671796,0.61466981,3252.9,3252.8,3.1]
[1642117672298,0.56466981,3252.9,3252.8,3.1]
[1642117673495,0.56466981,3252.9,3252.8,4.34873345]
[1642117674698,0.56466981,3252.9,3252.8,3.1]
[1642117675143,0.86466981,3252.9,3252.8,3.1]
[1642117675341,1.16466981,3252.9,3252.8,3.1]
[1642117678896,0.86466981,3252.9,3252.8,3.1]
[1642117679993,0.56466981,3252.9,3252.8,3.1]
[1642117684148,0.56466981,3252.9,3252.8,6.28042016]
[1642117686194,0.56466981,3252.9,3252.8,3.1]
[1642117692645,0.56466981,3252.9,3252.8,5.071461]
[1642117704295,0.86466981,3252.9,3252.8,5.071461]
[1642117704497,1.16466981,3252.9,3252.8,5.071461]
[1642117705441,1.28756981,3252.9,3252.8,5.071461]
[1642117705841,2.86874933,3252.9,3252.8,5.071461]
[1642117706042,3.86874933,3252.9,3252.8,5.071461]
[1642117708041,2.28756981,3252.9,3252.8,5.071461]
[1642117710607,1.23756981,3252.9,3252.8,5.071461]
[1642117710809,2.23756981,3252.9,3252.8,5.071461]
[1642117711411,1.23756981,3252.9,3252.8,5.071461]
[1642117711609,2.23756981,3252.9,3252.8,5.071461]
[1642117712009,2.69987893,3252.9,3252.8,5.071461]
[1642117712209,3.69987893,3252.9,3252.8,5.071461]
[1642117714448,2.11466981,3252.9,3252.8,5.071461]
[1642117715045,1.81466981,3252.9,3252.8,5.071461]
[1642117715247,0.81466981,3252.9,3252.8,5.071461]
[1642117716491,0.56466981,3252.9,3252.8,5.071461]
[1642117722457,0.56466981,3252.9,3252.8,8.71262618]
[1642117722658,0.56466981,3252.9,3252.8,8.83552618]
[1642117722857,0.56466981,3252.9,3252.8,5.194361]
[1642117723057,0.56466981,3252.9,3252.8,8.18288452]
[1642117724897,0.56466981,3252.9,3252.8,5.194361]
[1642117725095,0.56466981,3252.9,3252.8,5.071461]
[1642117729146,0.56334388,3252.9,3252.8,5.071461]
[1642117730748,0.56334388,3252.9,3252.8,5.021461]
[1642117732993,0.56334388,3252.9,3252.8,4.971461]
[1642117738048,0.56334388,3252.9,3252.8,4.89459469]
[1642117740103,0.56334388,3252.9,3252.8,4.84459469]
[1642117741808,0.56334388,3252.9,3252.8,6.38169029]
[1642117751653,0.021822,3253.4,3252.8,4.41022929]
[1642117751853,0.1229,3253.3,3252.8,4.41022929]
[1642117752054,0.12517369,3253.3,3252.8,4.41022929]
[1642117754298,0.00227369,3253.3,3252.8,4.41022929]
[1642117754498,0.00227369,3253.3,3252.8,5.58482929]
[1642117755202,7.499,3254.1,3253.2,2.19562654]
[1642117755401,7.499,3254.1,3253.5,0.06308585]
[1642117755601,0.00341054,3253.9,3253.5,0.1229]
[1642117756000,0.00284212,3253.8,3253.4,0.1229]
[1642117756203,0.00284212,3253.8,3253.6,1.46944761]
[1642117756401,7.499,3254.1,3253.7,0.76831]
[1642117756600,7.499,3254.1,3253.8,0.7683227]
[1642117756800,0.00397897,3254.0,3253.8,0.7683227]
[1642117757204,0.00341054,3253.9,3253.8,0.7683227]
[1642117760059,0.00341054,3253.9,3253.8,2.3047327]
[1642117761208,0.00341054,3253.9,3253.8,2.4276327]
[1642117761796,0.00341054,3253.9,3253.8,5.5276327]
[1642117762998,7.499,3254.1,3253.8,5.5276327]
[1642117763197,7.499,3254.1,3253.9,3.072627]
[1642117764299,7.499,3254.1,3253.9,2.304467]
[1642117765252,7.499,3254.1,3254.0,1.08023671]
[1642117765450,1.3540187,3254.1,3254.0,1.08023671]
[1642117765649,0.00113685,3254.1,3254.0,2.08023671]
[1642117765849,7.504,3254.3,3254.0,2.08023671]
[1642117765850,1.3596838,3254.3,3254.0,2.08023671]
[1642117766050,1.3596838,3254.3,3254.1,20.31411]
[1642117766254,1.3596838,3254.3,3254.2,0.39929994]
[1642117766454,0.11952603,3255.6,3255.1,0.76802]
[1642117768152,0.81834328,3255.5,3255.1,0.76802]
[1642117768354,0.1228,3255.4,3255.1,0.76802]
[1642117768554,0.13018951,3255.4,3255.1,0.76802]
[1642117770799,0.13018951,3255.4,3254.9,1.53603]
[1642117771399,0.1228,3255.4,3254.9,1.53603]
[1642117771601,0.1228,3255.4,3255.0,0.00227369]
[1642117771800,0.1228,3255.6,3255.0,0.00227369]
[1642117772199,0.00113684,3255.6,3255.1,3.1]
[1642117772452,0.1228,3255.5,3255.1,3.1]
[1642117772654,0.1228,3255.5,3255.2,0.00113685]
[1642117778313,0.00113684,3255.6,3255.2,0.00113685]
[1642117779315,0.00113684,3255.6,3255.2,5.01314889]
[1642117779519,0.00113684,3255.6,3255.3,3.03050727]
[1642117779713,0.00113684,3255.6,3255.5,1.09845353]
[1642117779951,0.00113684,3255.6,3255.3,4.73164]
[1642117780751,0.00113684,3255.6,3255.5,0.76781]
[1642117780952,0.00113684,3255.6,3255.3,4.73164]
[1642117780953,0.00113684,3255.6,3255.3,1.53584]
[1642117781156,0.00113684,3255.6,3255.2,1.15013685]
[1642117781656,0.00113684,3255.6,3255.3,0.1228]
[1642117782055,0.2847,3255.5,3255.3,0.89074]
[1642117785303,0.2847,3255.5,3255.3,0.76794]
[1642117786802,0.2847,3255.5,3255.4,3.0831223]
[1642117787003,0.2847,3255.5,3255.3,0.89074]
[1642117787207,0.2847,3255.5,3255.4,3.1029024]
[1642117790756,0.2847,3255.5,3255.4,3.2257024]
[1642117791614,0.83885956,3255.5,3255.4,3.2257024]
[1642117791814,0.2847,3255.5,3255.4,3.07788413]
[1642117792013,0.83885956,3255.5,3255.4,3.07788413]